{"text_format":"1","workbook":"xlsx","n_sheets":4,"sheets":["Standards","D2BS","LSTTC JSP2201","QuanTab8"],"not_rendered":{"charts":0,"images":0,"macros":1,"external_links":0,"defined_names":7,"comments":0,"pivot_tables":0},"unopened":[{"sheet":"QuanTab8","index":3,"reason":"part_missing"}],"bounds":{"document_bytes":16777216,"sheet_cells":100000,"rows_first":2000,"rows_last":500,"rows_between":2000,"halvings":0,"cell_chars":16384,"cell_head_chars":4096},"cells_cut":0,"cells_raw":0,"read":"whole","date_system":"1900"}

{"sheet":"Standards","index":0,"n_rows":35,"n_cols":9,"rows_kept":35,"cut":false,"hidden":false,"merged":[[4,1,5,8],[19,2,20,6]]}
["DRAFTING STANDARDS"]
[]
["TEXT MAPPING"]
[]
["Windows","Microstation Attributes"]
["Font"]
["Color","FT","TH","TW","LV","CO","LC","WT","Comment"]
["Black","Engineering Vert Mono Bold",0.12,0.12,"Common-Notes",0,0,2,"Small Text"]
["Red","Engineering Vert Mono Bold",0.12,0.12,"Common-Notes",2,0,2,"Small Text"]
["Green","Engineering Vert Mono Bold",0.15,0.15,"Common-Notes",0,0,4,"Medium Text"]
[]
[]
[]
[]
[]
[]
[]
["BORDER MAPPING"]
[]
["Excel","Name","Microstation Attributes"]
["Border"]
["Style",null,"LV","CO","LC","WT","Comment"]
[null,"Continuous","Grid_Line-Main",0,0,2]
[]
[null,"Dot","Grid_Line-Main",0,0,6]
[]
[null,"Dash","Grid_Line-Main",0,0,6]
[]
[null,"DashDot","Grid_Line-Main",0,0,6]
[]
[null,"DashDotDot","Grid_Line-Main",0,0,6]
[]
[null,"Double","Grid_Line-Main",0,0,6]
[]
[null,"SlantDashDot","Grid_Line-Main",0,0,6]

{"sheet":"D2BS","index":1,"n_rows":84,"n_cols":30,"rows_kept":84,"cut":false,"hidden":false,"merged":[[39,24,39,26],[39,27,39,29]]}
[null,1,0.8,0.8,0.7,0.8,0.8,0.8,0.7,5.8,0.05,1.0021,0.8,0.8,0.7,0.8,0.8,0.8,0.7,3.7,0.05,1,0.8,5.04]
[]
[]
[0.28999999999999998,null,null,null,null,"TOTAL","QTY","TOTAL",null,null,null,null,null,null,null,null,"QTY","TOTAL",null,null,null,null,null,"EFFECTIVE: 07-01-2025"]
[0.28999999999999998,"SIGN","SIZE","AREA","QTY","AREA","RELOC","RELOC","SIGN",null,null,"SIGN","SIZE","AREA","QTY","TOTAL","RELOC","RELOC","SIGN",null,null,"ITEM","TOTAL"]
[0.28999999999999998,null,"IN.","SQ.FT.","EACH","SQ.FT.","EACH","SQ.FT.","NO.","DESCRIPTION",null,null,"IN.","SQ.FT.","EACH","SQ.FT.","EACH","SQ.FT.","NO.","DESCRIPTION",null,"NUMBER","QTY","DESCRIPTION"]
[0.25,null,null,null,null,null,"WARNING SIGNS",null,null,null,null,null,null,null,null,null,"GUIDE SIGNS",null,null,null,null,6122008,null,"IMPACT ATTENUATOR 40 MPH (SAND BARRELS)"]
[0.25,"WO1-1L","48X48",16,null,{"$f":"IF(E8<=0,\"\",E8*D8)","v":""},null,{"$f":"IF(G8<=0,\"\",G8*D8)","v":""},null,"TURN (SYMBOL LEFT)",null,"E05-1","36X48",12,null,{"$f":"IF(O8<=0,\"\",O8*N8)","v":""},null,{"$f":"IF(Q8<=0,\"\",Q8*N8)","v":""},null,"GORE EXIT",null,6122009,null,"IMPACT ATTENUATOR 45 MPH (SAND BARRELS)"]
[0.25,"WO1-1R","48X48",16,null,{"$f":"IF(E9<=0,\"\",E9*D9)","v":""},null,{"$f":"IF(G9<=0,\"\",G9*D9)","v":""},null,"TURN (SYMBOL RIGHT)",null,"E05-2","48X36",12,null,{"$f":"IF(O9<=0,\"\",O9*N9)","v":""},null,{"$f":"IF(Q9<=0,\"\",Q9*N9)","v":""},null,"EXIT OPEN",null,6122010,null,"IMPACT ATTENUATOR 50 MPH (SAND BARRELS)"]
[0.25,"WO1-2L","48X48",16,null,"",null,{"$f":"IF(G10<=0,\"\",G10*D10)","v":""},null,"CURVE (SYMBOL LEFT)",null,"E05-2a","48X36",12,null,"",null,"",null,"EXIT CLOSED",null,6122012,null,"IMPACT ATTENUATOR 55 MPH (SAND BARRELS)"]
[0.25,"WO1-2R","48X48",16,null,{"$f":"IF(E11<=0,\"\",E11*D11)","v":""},null,"",null,"CURVE (SYMBOL RIGHT)",null,"GO20-1","60X24",10,null,"",null,"",null,"ROAD WORK NEXT XX MILES",null,6122014,null,"IMPACT ATTENUATOR 60 MPH (SAND BARRELS)"]
[0.25,"WO1-3L","48X48",16,null,"",null,"",null,"REVERSE TURN (SYMBOL LEFT)",null,"GO20-2","48X24",8,null,"",null,"",null,"END ROAD WORK",null,6122017,null,"IMPACT ATTENUATOR 65 MPH (SAND BARRELS)"]
[0.25,"WO1-3R","48X48",16,null,"",null,"",null,"REVERSE TURN (SYMBOL RIGHT)",null,"GO20-4","36X18",4.5,null,"",null,"",null,"PILOT CAR FOLLOW ME",null,6122019,null,"IMPACT ATTENUATOR 70 MPH (SAND BARRELS)"]
[0.25,"WO1-4L","48X48",16,null,"",null,"",null,"REVERSE CURVE (SYMBOL LEFT)",null,"GO20-4a","42X30",8.75,null,"",null,"",null,"PILOT CAR IN USE WAIT & FOLLOW",null,6122020,null,"REPLACEMENT SAND BARREL"]
[0.25,"WO1-4R","48X48",16,null,"",null,"",null,"REVERSE CURVE (SYMBOL RIGHT)",null,"GO20-4a","18X12",1.5,null,"",null,"",null,"PILOT CAR IN USE WAIT & FOLLOW",null,6122030,null,"IMPACT ATTENUATOR (RELOCATION)"]
[0.25,"WO1-4bL","48X48",16,null,"",null,"",null,"DOUBLE ARROW REVERSE CURVE (SYMBOL LEFT)",null,"GO20-5aP","36X24",6,null,"",null,"",null,"WORK ZONE (PLAQUE)",null,6122040,null,"WORK ZONE CRASH CUSHION (NARROW)"]
[0.25,"WO1-4bR","48X48",16,null,"",null,"",null,"DOUBLE ARROW REVERSE CURVE (SYMBOL RIGHT)",null,"MO4-8a","24X18",3,null,"",null,"",null,"END DETOUR",null,6122041,null,"WORK ZONE CRASH CUSHION (RELOCATION)"]
[0.25,"WO1-4cL","48X48",16,null,"",null,"",null,"TRIPLE ARROW REVERSE CURVE (SYMBOL LEFT)",null,"MO4-9L","48X36",12,null,"",null,"",null,"DETOUR (LEFT)",null,6123001,null,"TRUCK MOUNTED ATTENUATOR (TMA)"]
[0.25,"WO1-4cR","48X48",16,null,"",null,"",null,"TRIPLE ARROW REVERSE CURVE (SYMBOL RIGHT)",null,"MO4-9R","48X36",12,null,"",null,"",null,"DETOUR (RIGHT)",null,6161012,null,"BUOYS (BOATS KEEP OUT)"]
[0.25,"WO1-6","60X30",12.5,null,"",null,"",null,"HORIZONTAL ARROW (SYMBOL)",null,"MO4-9P","48X12",4,null,"",null,"",null,"STREET NAME (PLAQUE)",null,6161013,null,"BUOYS (NO WAKE)"]
[0.25,"WO1-6a","72X36",18,null,"",null,"",null,"HORIZ. ARROW (SYMBOL ON PERMANENT BARRICADE)",null,"MO4-10L","48X18",6,null,"",null,"",null,"DETOUR ARROW (LEFT)",null,6161014,null,"SPECIAL SIGN ASSEMBLY (BOATS KEEP OUT)"]
[0.25,"WO1-7","60X30",12.5,null,"",null,"",null,"DOUBLE HEAD HORIZONTAL ARROW (SYMBOL)",null,"MO4-10R","48X18",6,null,"",null,"",null,"DETOUR ARROW (RIGHT)",null,6161020,null,"CHANNELIZER (DRUM-LIKE)"]
[0.25,"WO1-7a","72X36",18,null,"",null,"",null,"DOUBLE HEAD HORIZ. ARROW (SYMBOL ON PERM. BARR.)",null,null,null,null,null,null,"REGULATORY SIGNS",null,null,null,null,6161022,null,"CHANNELIZER (CONE)"]
[0.25,"WO1-8","18X24",3,null,"",null,"",null,"CHEVRON (SYMBOL)",null,"R1-1","48X48",13.25,null,{"$f":"IF(O24<=0,\"\",O24*N24)","v":""},null,{"$f":"IF(Q24<=0,\"\",Q24*N24)","v":""},null,"STOP",null,6161025,null,"CHANNELIZER (TRIM-LINE)"]
[0.25,"WO1-8a","30X36",7.5,null,"",null,"",null,"CHEVRON (SYMBOL FOR DIVIDED HIGHWAYS)",null,"R1-2","48TRI.",6.93,null,{"$f":"IF(O25<=0,\"\",O25*N25)","v":""},null,{"$f":"IF(Q25<=0,\"\",Q25*N25)","v":""},null,"YIELD",null,6161026,null,"CHANNELIZER (VERTICAL PANEL)"]
[0.25,"WO3-1","48X48",16,null,"",null,"",null,"STOP AHEAD (SYMBOL)",null,"R1-2a","36X36",9,null,"",null,"",null,"TO ONCOMING TRAFFIC (PLAQUE)",null,6161030,null,"TYPE 3 MOVEABLE BARRICADE"]
[0.25,"WO3-2","48X48",16,null,"",null,"",null,"YIELD AHEAD (SYMBOL)",null,"R1-3P","30X12",2.5,null,"",null,"",null,"ALL WAY (PLAQUE)",null,6161033,null,"DIRECTION INDICATOR BARRICADE"]
[0.25,"WO3-3 ","48X48",16,null,"",null,"",null,"SIGNAL AHEAD (SYMBOL)",null,"R2-1","36X48",12,null,"",null,"",null,"SPEED LIMIT XX",null,6161040,null,"FLASHING ARROW PANEL"]
[0.25,"WO3-4","48X48",16,null,"",null,"",null,"BE PREPARED TO STOP",null,"R3-1","48X48",16,null,"",null,"",null,"NO RIGHT TURN (SYMBOL)",null,6161047,null,"TYPE 3 OBJECT MARKER"]
[0.25,"WO3-5","48X48",16,null,"",null,"",null,"SPEED LIMIT AHEAD",null,"R3-2","48X48",16,null,"",null,"",null,"NO LEFT TURN (SYMBOL)",null,6161055,null,"SEQUENTIAL FLASHING WARNING LIGHT"]
[0.25,"WO4-1L ","48X48",16,null,"",null,"",null,"MERGE (SYMBOL FROM LEFT)",null,"R3-3","36X36",9,null,"",null,"",null,"NO TURNS",null,6161070,null,"TUBULAR MARKER"]
[0.25,"WO4-1R ","48X48",16,null,"",null,"",null,"MERGE (SYMBOL FROM RIGHT)",null,"R3-4","48X48",16,null,"",null,"",null,"NO U-TURN (SYMBOL)",null,6161095,null,"RADAR SPEED ADVISORY SYSTEM"]
[0.25,"WO4-1aL ","48X48",16,null,"",null,"",null,"MERGE (LEFT)",null,"R3-7L","30X30",6.25,null,"",null,"",null,"LEFT LANE MUST TURN LEFT",null,null,null,"CHANGEABLE MESSAGE SIGN, "]
[0.25,"WO4-1aR ","48X48",16,null,"",null,"",null,"MERGE (RIGHT)",null,"R3-7R","30X30",6.25,null,"",null,"",null,"RIGHT LANE MUST TURN RIGHT",null,6161096,null,"COMMISSION FURNISHED/RETAINED"]
[0.25,"WO5-1 ","48X48",16,null,{"$f":"IF(E35<=0,\"\",E35*D35)","v":""},null,"",null,"ROAD/BRIDGE/RAMP NARROWS",null,"R4-1","36X48",12,null,"",null,"",null,"DO NOT PASS",null,null,null,"CHANGEABLE MESSAGE SIGN WITHOUT COMM."]
[0.25,"WO5-3 ","48X48",16,null,"",null,"",null,"ONE LANE BRIDGE",null,"R4-2","36X48",12,null,"",null,"",null,"PASS WITH CARE",null,"6161098A",null,"INTERFACE, CONTRACTOR FURNISHED/RETAINED"]
[0.25,"WO5-5","48X48",16,null,"",null,"",null,"NARROW LANES",null,"R4-7a","36X48",12,null,"",null,"",null,"KEEP RIGHT  (HORIZONTAL ARROW)",null,null,null,"CHANGEABLE MESSAGE SIGN WITH COMM. "]
[0.25,"WO6-1 ","48X48",16,null,"",null,"",null,"DIVIDED HIGHWAY (SYMBOL)",null,"R4-8a","36X48",12,null,"",null,"",null,"KEEP LEFT  (HORIZONTAL ARROW)",null,6161099,null,"INTERFACE, CONTRACTOR FURNISHED/RETAINED"]
[0.25,"WO6-2","48X48",16,null,"",null,"",null,"DIVIDED HIGHWAY END (SYMBOL)",null,"R5-1","30X30",6.25,null,"",null,"",null,"DO NOT ENTER",null,"6162000A",null,"WORK ZONE TRAFFIC SIGNAL SYSTEM"]
[0.25,"WO6-3","48X48",16,null,"",null,"",null,"TWO WAY TRAFFIC (SYMBOL)",null,"R5-1a","36X24",6,null,"",null,"",null,"WRONG WAY",null,6162002,null,"TEMPORARY LONG-TERM RUMBLE STRIPS","swap out items to left if contractor furnished/commission retained",null,null,"swap out items if commission furnished/retained"]
[0.25,"WO7-3a","30X24",5,null,"",null,"",null,"NEXT XX MILES (PLAQUE)",null,"R6-1L","54X18",6.75,null,"",null,"",null,"ONE WAY ARROW (LEFT)",null,null,null,"TEMPORARY TRAFFIC BARRIER,",null,null,"TEMPORARY TRAFFIC BARRIER,",null,null,"TEMP. TRAFFIC BARRIER ANCHORED,"]
[0.25,"WO8-1 ","48X48",16,null,"",null,"",null,"BUMP",null,"R6-1R","54X18",6.75,null,"",null,"",null,"ONE WAY ARROW (RIGHT)",null,"6173600D",null,"CONTRACTOR FURNISHED/RETAINED","6173602B",null,"CONTRACTOR FURNISHED/COMMISSION RETAINED","6173704B",null,"COMMISSION FURNISHED/RETAINED"]
[0.25,"WO8-2 ","48X48",16,null,"",null,"",null,"DIP",null,"R6-2L","24X30",5,null,"",null,"",null,"ONE WAY (LEFT)",null,null,null,"TEMP. TRAFFIC BARRIER ANCHORED,",null,null,"TEMP. TRAFFIC BARRIER ANCHORED,",null,null,"TEMP. TRAFFIC BARRIER STIFFNESS TRANSITION"]
[0.25,"WO8-3","48X48",16,null,"",null,"",null,"PAVEMENT ENDS",null,"R6-2R","24X30",5,null,"",null,"",null,"ONE WAY (RIGHT)",null,"6173700B",null,"CONTRACTOR FURNISHED/RETAINED","6173702B",null,"CONTRACTOR FURNISHED/COMMISSION RETAINED",6173708,null,"COMMISSION FURNISHED/RETAINED"]
[0.25,"WO8-4 ","48X48",16,null,"",null,"",null,"SOFT SHOULDER",null,"R9-9","24X12",2,null,"",null,"",null,"SIDEWALK CLOSED",null,null,null,"TEMP. TRAFFIC BARRIER STIFFNESS TRANSITION",null,null,"TEMP. TRAFFIC BARRIER STIFFNESS TRANSITION","6175010A",null,"RELOCATING TEMPORARY TRAFFIC BARRIER"]
[0.25,"WO8-5 ","48X48",16,null,"",null,"",null,"SLIPPERY WHEN WET (SYMBOL)",null,null,null,null,null,null,null,null,null,"SIDEWALK CLOSED AHEAD,",null,6173706,null,"CONTRACTOR FURNISHED/RETAINED",6173707,null,"CONTRACTOR FURNISHED/COMMISSION RETAINED","6175011B",null,"RELOCATING TEMP. TRAFFIC BARRIER ANCHORED"]
[0.25,"WO8-6 ","48X48",16,null,"",null,"",null,"TRUCK CROSSING",null,"R9-11L","24X18",3,null,"",null,"",null,"(ARROW LEFT) CROSS HERE",null,null,null,"TEMP. TRAFFIC BARRIER HEIGHT TRANSITION,",null,null,"TEMP. TRAFFIC BARRIER HEIGHT TRANSITION,",6175013,null,"RELOCATING TEMP. TRAFFIC BARRIER STIFFNESS"]
[0.25,"WO8-6c","48X48",16,null,"",null,"",null,"TRUCK ENTRANCE",null,null,null,null,null,null,null,null,null,"SIDEWALK CLOSED AHEAD, ",null,"6174000A",null,"CONTRACTOR FURNISHED/RETAINED",6174100,null,"CONTRACTOR FURNISHED/COMMISSION RETAINED","6175020A",null,"RELOCATING TEMP. TRAFFIC BARRIER HEIGHT"]
[0.25,"WO8-7 ","36X36",9,null,"",null,"",null,"LOOSE GRAVEL",null,"R9-11R","24X18",3,null,"",null,"",null,"(ARROW RIGHT) CROSS HERE",null,"6175010A",null,"RELOCATING TEMPORARY TRAFFIC BARRIER",null,null,null,null,null,"TEMPORARY TRAFFIC BARRIER,"]
[0.25,"WO8-7a","36X36",9,null,"",null,"",null,"FRESH OIL / LOOSE GRAVEL",null,"R10-6","24X36",6,null,"",null,"",null,"STOP HERE ON RED (45^ ARROW)",null,"6175011B",null,"RELOCATING TEMP. TRAFFIC BARRIER ANCHORED",null,null,null,"6176000B",null,"COMMISSION FURNISHED/RETAINED"]
[0.25,"WO8-9","48X48",16,null,"",null,"",null,"LOW SHOULDER",null,"R11-2","48X30",10,null,"",null,"",null,"ROAD CLOSED",null,6175013,null,"RELOCATING TEMP. TRAFFIC BARRIER STIFFNESS",null,null,null,null,null,"TEMP. TRAFFIC BARRIER ANCHORED,"]
[0.25,"WO8-11","48X48",16,null,"",null,"",null,"UNEVEN LANES",null,null,null,null,null,null,null,null,null,"ROAD CLOSED XX MILES AHEAD",null,"6175020A",null,"RELOCATING TEMP. TRAFFIC BARRIER HEIGHT",null,null,null,"6177000B",null,"COMMISSION FURNISHED/RETAINED"]
[0.25,"WO8-12","48X48",16,null,"",null,"",null,"NO CENTER LINE",null,"R11-3a","60X30",12.5,null,"",null,"",null,"LOCAL TRAFFIC ONLY",null,"6208064A",null,"TEMPORARY RAISED PAVEMENT MARKER"]
[0.25,"WO8-15","48X48",16,null,"",null,"",null,"GROOVED PAVEMENT",null,"R11-4","60X30",12.5,null,"",null,"",null,"ROAD CLOSED TO THRU TRAFFIC",null,9029400,null,"TEMPORARY TRAFFIC SIGNALS"]
[0.25,"WO8-15P","30X24",5,null,"",null,"",null,"MOTORCYCLE (PLAQUE)",null,"CONST-3A","60X48",20,null,"",null,"",null,"FINE SIGN",null,9029401,null,"TEMPORARY TRAFFIC SIGNALS AND LIGHTING"]
[0.25,"WO8-17L","48X48",16,null,{"$f":"IF(E56<=0,\"\",E56*D56)","v":""},null,{"$f":"IF(G56<=0,\"\",G56*D56)","v":""},null,"SHOULDER DROP-OFF (SYMBOL LEFT)",null,"CONST-3X","56X12",4.67,null,"",null,"",null,"SPEEDING/PASSING (PLATE)"]
[0.25,"WO8-17R","48X48",16,null,"",null,{"$f":"IF(G57<=0,\"\",G57*D57)","v":""},null,"SHOULDER DROP-OFF (SYMBOL RIGHT)",null,null,null,null,null,null,"MISCELLANEOUS SIGNS"]
[0.25,"WO8-17P","30X24",5,null,"",null,"",null,"SHOULDER DROP-OFF (PLAQUE)",null,"CONST-5","48X36",12,null,"",null,"",null,"POINT OF PRESENCE"]
[0.25,"W10-1","42RND.",9.6199999999999992,null,"",null,"",null,"RAILROAD CROSSING",null,"CONST-5","96X48",32,null,"",null,"",null,"POINT OF PRESENCE"]
[0.25,"WO12-1","24X24",4,null,"",null,"",null,"DOUBLE DOWN ARROW (SYMBOL)",null,"CONST-8","48X36",12,null,"",null,"",null,"WORK ZONE NO PHONE ZONE"]
[0.25,"WO12-2 ","48X48",16,null,"",null,"",null,"LOW CLEARANCE (SYMBOL)",null,null,null,null,null,"",null,""]
[0.25,"W012-2x","24X18",3,null,"",null,"",null,"LOW CLEARANCE (PLAQUE)",null,null,null,null,null,"",null,""]
[0.25,"WO12-2a","84X24",14,null,"",null,"",null,"OVERHEAD LOW CLEARANCE (FEET AND INCHES)",null,null,null,null,null,"",null,""]
[0.25,"WO12-4","120X60",50,null,"",null,"",null,"LOW CLEARANCE XX FT XX IN  XX MILES AHEAD",null,null,null,null,null,"",null,""]
[0.25,"WO12-5","120X60",50,null,"",null,"",null,"WIDTH RESTRICTION XX FT XX IN  XX MILES AHEAD ",null,null,null,null,null,"",null,""]
[0.25,"WO13-1 ","30X30",6.25,null,"",null,"",null,"ADVISORY SPEED (PLAQUE)",null,null,null,null,null,"",null,""]
[0.25,"WO16-2","30X24",5,null,"",null,"",null,"XXX FEET (PLAQUE)",null,null,null,null,null,"",null,""]
[0.25,"WO16-3","30X24",5,null,"",null,"",null,"X MILE (PLAQUE)",null,null,null,null,null,"",null,""]
[0.25,"WO20-1","48X48",16,null,"",null,"",null,"ROAD/BRIDGE/RAMP WORK AHEAD",null,null,null,null,null,"",null,""]
[0.25,"WO20-2","48X48",16,null,"",null,"",null,"DETOUR AHEAD",null,null,null,null,null,"",null,""]
[0.25,"WO20-3","48X48",16,null,"",null,"",null,"ROAD CLOSED AHEAD",null,"616-10.05",null,null,null,"TOTAL"]
[0.25,"WO20-4","48X48",16,null,"",null,"",null,"ONE LANE ROAD AHEAD",null,"CONSTRUCTION SIGNS",null,null,null,{"$f":"ROUNDUP(SUM(F8:F82)+SUM(P8:P22)+SUM(P24:P56)+SUM(P58:P70),0)","v":0}]
[0.25,"WO20-5","48X48",16,null,"",null,"",null,"RIGHT/CENTER/LEFT LANE CLOSED AHEAD",null,"616-10.10",null,null,null,null,null,"TOTAL"]
[0.25,"WO20-5a","48X48",16,null,"",null,"",null,"2 RIGHT/CENTER/LEFT LANES CLOSED AHEAD",null,"RELOCATED SIGNS",null,null,null,null,null,{"$f":"ROUNDUP(SUM(H8:H82)+SUM(R8:R22)+SUM(R24:R56)+SUM(R58:R70),0)","v":0}]
[0.25,"WO20-6a","48X48",16,null,"",null,"",null,"RIGHT/CENTER/LEFT LANE CLOSED"]
[0.25,"WO20-7a","48X48",16,null,"",null,"",null,"FLAGGER (SYMBOL)"]
[0.25,"WO21-2","36X36",9,null,"",null,"",null,"FRESH OIL"]
[0.25,"WO21-5","48X48",16,null,"",null,"",null,"SHOULDER WORK / SHOULDER WORK AHEAD"]
[0.25,"WO22-1","48X48",16,null,"",null,"",null,"BLASTING ZONE AHEAD"]
[0.25,"WO22-2","42X36",10.5,null,"",null,"",null,"TURN OFF 2-WAY RADIO AND PHONE"]
[0.25,"WO22-3","42X36",10.5,null,"",null,"",null,"END BLASTING ZONE"]
[0.25,"GO22-1","21X15",2.19,null,"",null,"",null,"WET PAINT (ARROW PIVOTS)"]
[0.25]
[0.255]

{"sheet":"LSTTC JSP2201","index":2,"n_rows":84,"n_cols":30,"rows_kept":84,"cut":false,"hidden":false,"merged":[[39,24,39,26],[39,27,39,29]]}
[null,1,0.8,0.8,0.7,0.8,0.8,0.8,0.7,5.8,0.05,1.0021,0.8,0.8,0.7,0.8,0.8,0.8,0.7,3.7,0.05,1,0.8,5.04]
[]
[]
[0.28999999999999998,null,null,null,null,"TOTAL","QTY","TOTAL",null,null,null,null,null,null,null,null,"QTY","TOTAL",null,null,null,null,null,"EFFECTIVE: 07-01-2025"]
[0.28999999999999998,"SIGN","SIZE","AREA","QTY","AREA","RELOC","RELOC","SIGN",null,null,"SIGN","SIZE","AREA","QTY","TOTAL","RELOC","RELOC","SIGN",null,null,"ITEM","TOTAL"]
[0.28999999999999998,null,"IN.","SQ.FT.","EACH","SQ.FT.","EACH","SQ.FT.","NO.","DESCRIPTION",null,null,"IN.","SQ.FT.","EACH","SQ.FT.","EACH","SQ.FT.","NO.","DESCRIPTION",null,"NUMBER","QTY","DESCRIPTION"]
[0.25,null,null,null,null,null,"WARNING SIGNS",null,null,null,null,null,null,null,null,null,"GUIDE SIGNS",null,null,null,null,6122008,null,"IMPACT ATTENUATOR 40 MPH (SAND BARRELS)"]
[0.25,"WO1-1L","48X48",16,null,{"$f":"IF(E8<=0,\"\",E8*D8)","v":""},null,{"$f":"IF(G8<=0,\"\",G8*D8)","v":""},null,"TURN (SYMBOL LEFT)",null,"E05-1","36X48",12,null,{"$f":"IF(O8<=0,\"\",O8*N8)","v":""},null,{"$f":"IF(Q8<=0,\"\",Q8*N8)","v":""},null,"GORE EXIT",null,6122009,null,"IMPACT ATTENUATOR 45 MPH (SAND BARRELS)"]
[0.25,"WO1-1R","48X48",16,null,{"$f":"IF(E9<=0,\"\",E9*D9)","v":""},null,{"$f":"IF(G9<=0,\"\",G9*D9)","v":""},null,"TURN (SYMBOL RIGHT)",null,"E05-2","48X36",12,null,{"$f":"IF(O9<=0,\"\",O9*N9)","v":""},null,{"$f":"IF(Q9<=0,\"\",Q9*N9)","v":""},null,"EXIT OPEN",null,6122010,null,"IMPACT ATTENUATOR 50 MPH (SAND BARRELS)"]
[0.25,"WO1-2L","48X48",16,null,"",null,{"$f":"IF(G10<=0,\"\",G10*D10)","v":""},null,"CURVE (SYMBOL LEFT)",null,"E05-2a","48X36",12,null,"",null,"",null,"EXIT CLOSED",null,6122012,null,"IMPACT ATTENUATOR 55 MPH (SAND BARRELS)"]
[0.25,"WO1-2R","48X48",16,null,"",null,"",null,"CURVE (SYMBOL RIGHT)",null,"GO20-1","60X24",10,null,"",null,"",null,"ROAD WORK NEXT XX MILES",null,6122014,null,"IMPACT ATTENUATOR 60 MPH (SAND BARRELS)"]
[0.25,"WO1-3L","48X48",16,null,"",null,"",null,"REVERSE TURN (SYMBOL LEFT)",null,"GO20-2","48X24",8,null,"",null,"",null,"END ROAD WORK",null,6122017,null,"IMPACT ATTENUATOR 65 MPH (SAND BARRELS)"]
[0.25,"WO1-3R","48X48",16,null,"",null,"",null,"REVERSE TURN (SYMBOL RIGHT)",null,"GO20-4","36X18",4.5,null,"",null,"",null,"PILOT CAR FOLLOW ME",null,6122019,null,"IMPACT ATTENUATOR 70 MPH (SAND BARRELS)"]
[0.25,"WO1-4L","48X48",16,null,"",null,"",null,"REVERSE CURVE (SYMBOL LEFT)",null,"GO20-4a","42X30",8.75,null,"",null,"",null,"PILOT CAR IN USE WAIT & FOLLOW",null,6122020,null,"REPLACEMENT SAND BARREL"]
[0.25,"WO1-4R","48X48",16,null,"",null,"",null,"REVERSE CURVE (SYMBOL RIGHT)",null,"GO20-4a","18X12",1.5,null,"",null,"",null,"PILOT CAR IN USE WAIT & FOLLOW",null,6122030,null,"IMPACT ATTENUATOR (RELOCATION)"]
[0.25,"WO1-4bL","48X48",16,null,"",null,"",null,"DOUBLE ARROW REVERSE CURVE (SYMBOL LEFT)",null,"GO20-5aP","36X24",6,null,"",null,"",null,"WORK ZONE (PLAQUE)",null,6122040,null,"WORK ZONE CRASH CUSHION (NARROW)"]
[0.25,"WO1-4bR","48X48",16,null,"",null,"",null,"DOUBLE ARROW REVERSE CURVE (SYMBOL RIGHT)",null,"MO4-8a","24X18",3,null,"",null,"",null,"END DETOUR",null,6122041,null,"WORK ZONE CRASH CUSHION (RELOCATION)"]
[0.25,"WO1-4cL","48X48",16,null,"",null,"",null,"TRIPLE ARROW REVERSE CURVE (SYMBOL LEFT)",null,"MO4-9L","48X36",12,null,"",null,"",null,"DETOUR (LEFT)",null,6123001,null,"TRUCK MOUNTED ATTENUATOR (TMA)"]
[0.25,"WO1-4cR","48X48",16,null,"",null,"",null,"TRIPLE ARROW REVERSE CURVE (SYMBOL RIGHT)",null,"MO4-9R","48X36",12,null,"",null,"",null,"DETOUR (RIGHT)",null,6161012,null,"BUOYS (BOATS KEEP OUT)"]
[0.25,"WO1-6","60X30",12.5,null,"",null,"",null,"HORIZONTAL ARROW (SYMBOL)",null,"MO4-9P","48X12",4,null,"",null,"",null,"STREET NAME (PLAQUE)",null,6161013,null,"BUOYS (NO WAKE)"]
[0.25,"WO1-6a","72X36",18,null,"",null,"",null,"HORIZ. ARROW (SYMBOL ON PERMANENT BARRICADE)",null,"MO4-10L","48X18",6,null,"",null,"",null,"DETOUR ARROW (LEFT)",null,6161014,null,"SPECIAL SIGN ASSEMBLY (BOATS KEEP OUT)"]
[0.25,"WO1-7","60X30",12.5,null,"",null,"",null,"DOUBLE HEAD HORIZONTAL ARROW (SYMBOL)",null,"MO4-10R","48X18",6,null,"",null,"",null,"DETOUR ARROW (RIGHT)",null,6161020,null,"CHANNELIZER (DRUM-LIKE)"]
[0.25,"WO1-7a","72X36",18,null,"",null,"",null,"DOUBLE HEAD HORIZ. ARROW (SYMBOL ON PERM. BARR.)",null,null,null,null,null,null,"REGULATORY SIGNS",null,null,null,null,6161022,null,"CHANNELIZER (CONE)"]
[0.25,"WO1-8","18X24",3,null,"",null,"",null,"CHEVRON (SYMBOL)",null,"R1-1","48X48",13.25,null,{"$f":"IF(O24<=0,\"\",O24*N24)","v":""},null,{"$f":"IF(Q24<=0,\"\",Q24*N24)","v":""},null,"STOP",null,6161025,null,"CHANNELIZER (TRIM-LINE)"]
[0.25,"WO1-8a","30X36",7.5,null,"",null,"",null,"CHEVRON (SYMBOL FOR DIVIDED HIGHWAYS)",null,"R1-2","48TRI.",6.93,null,{"$f":"IF(O25<=0,\"\",O25*N25)","v":""},null,{"$f":"IF(Q25<=0,\"\",Q25*N25)","v":""},null,"YIELD",null,6161026,null,"CHANNELIZER (VERTICAL PANEL)"]
[0.25,"WO3-1","48X48",16,null,"",null,"",null,"STOP AHEAD (SYMBOL)",null,"R1-2a","36X36",9,null,"",null,"",null,"TO ONCOMING TRAFFIC (PLAQUE)",null,6161030,null,"TYPE 3 MOVEABLE BARRICADE"]
[0.25,"WO3-2","48X48",16,null,"",null,"",null,"YIELD AHEAD (SYMBOL)",null,"R1-3P","30X12",2.5,null,"",null,"",null,"ALL WAY (PLAQUE)",null,6161033,null,"DIRECTION INDICATOR BARRICADE"]
[0.25,"WO3-3 ","48X48",16,null,"",null,"",null,"SIGNAL AHEAD (SYMBOL)",null,"R2-1","36X48",12,null,"",null,"",null,"SPEED LIMIT XX",null,6161040,null,"FLASHING ARROW PANEL"]
[0.25,"WO3-4","48X48",16,null,"",null,"",null,"BE PREPARED TO STOP",null,"R3-1","48X48",16,null,"",null,"",null,"NO RIGHT TURN (SYMBOL)",null,6161047,null,"TYPE 3 OBJECT MARKER"]
[0.25,"WO3-5","48X48",16,null,"",null,"",null,"SPEED LIMIT AHEAD",null,"R3-2","48X48",16,null,"",null,"",null,"NO LEFT TURN (SYMBOL)",null,6161055,null,"SEQUENTIAL FLASHING WARNING LIGHT"]
[0.25,"WO4-1L ","48X48",16,null,"",null,"",null,"MERGE (SYMBOL FROM LEFT)",null,"R3-3","36X36",9,null,"",null,"",null,"NO TURNS",null,6161070,null,"TUBULAR MARKER"]
[0.25,"WO4-1R ","48X48",16,null,"",null,"",null,"MERGE (SYMBOL FROM RIGHT)",null,"R3-4","48X48",16,null,"",null,"",null,"NO U-TURN (SYMBOL)",null,6161095,null,"RADAR SPEED ADVISORY SYSTEM"]
[0.25,"WO4-1aL ","48X48",16,null,"",null,"",null,"MERGE (LEFT)",null,"R3-7L","30X30",6.25,null,"",null,"",null,"LEFT LANE MUST TURN LEFT",null,null,null,"CHANGEABLE MESSAGE SIGN, "]
[0.25,"WO4-1aR ","48X48",16,null,"",null,"",null,"MERGE (RIGHT)",null,"R3-7R","30X30",6.25,null,"",null,"",null,"RIGHT LANE MUST TURN RIGHT",null,6161096,null,"COMMISSION FURNISHED/RETAINED"]
[0.25,"WO5-1 ","48X48",16,null,"",null,"",null,"ROAD/BRIDGE/RAMP NARROWS",null,"R4-1","36X48",12,null,"",null,"",null,"DO NOT PASS",null,null,null,"CHANGEABLE MESSAGE SIGN WITHOUT COMM."]
[0.25,"WO5-3 ","48X48",16,null,"",null,"",null,"ONE LANE BRIDGE",null,"R4-2","36X48",12,null,"",null,"",null,"PASS WITH CARE",null,"6161098A",null,"INTERFACE, CONTRACTOR FURNISHED/RETAINED"]
[0.25,"WO5-5","48X48",16,null,"",null,"",null,"NARROW LANES",null,"R4-7a","36X48",12,null,"",null,"",null,"KEEP RIGHT  (HORIZONTAL ARROW)",null,null,null,"CHANGEABLE MESSAGE SIGN WITH COMM. "]
[0.25,"WO6-1 ","48X48",16,null,"",null,"",null,"DIVIDED HIGHWAY (SYMBOL)",null,"R4-8a","36X48",12,null,"",null,"",null,"KEEP LEFT  (HORIZONTAL ARROW)",null,6161099,null,"INTERFACE, CONTRACTOR FURNISHED/RETAINED"]
[0.25,"WO6-2","48X48",16,null,"",null,"",null,"DIVIDED HIGHWAY END (SYMBOL)",null,"R5-1","30X30",6.25,null,"",null,"",null,"DO NOT ENTER",null,"6162000A",null,"WORK ZONE TRAFFIC SIGNAL SYSTEM"]
[0.25,"WO6-3","48X48",16,null,"",null,"",null,"TWO WAY TRAFFIC (SYMBOL)",null,"R5-1a","36X24",6,null,"",null,"",null,"WRONG WAY",null,6162002,null,"TEMPORARY LONG-TERM RUMBLE STRIPS","swap out items to left if contractor furnished/commission retained",null,null,"swap out items if commission furnished/retained"]
[0.25,"WO7-3a","30X24",5,null,"",null,"",null,"NEXT XX MILES (PLAQUE)",null,"R6-1L","54X18",6.75,null,"",null,"",null,"ONE WAY ARROW (LEFT)",null,null,null,"TEMPORARY TRAFFIC BARRIER,",null,null,"TEMPORARY TRAFFIC BARRIER,",null,null,"TEMP. TRAFFIC BARRIER ANCHORED,"]
[0.25,"WO8-1 ","48X48",16,null,"",null,"",null,"BUMP",null,"R6-1R","54X18",6.75,null,"",null,"",null,"ONE WAY ARROW (RIGHT)",null,"6173600D",null,"CONTRACTOR FURNISHED/RETAINED","6173602B",null,"CONTRACTOR FURNISHED/COMMISSION RETAINED","6173704B",null,"COMMISSION FURNISHED/RETAINED"]
[0.25,"WO8-2 ","48X48",16,null,"",null,"",null,"DIP",null,"R6-2L","24X30",5,null,"",null,"",null,"ONE WAY (LEFT)",null,null,null,"TEMP. TRAFFIC BARRIER ANCHORED,",null,null,"TEMP. TRAFFIC BARRIER ANCHORED,",null,null,"TEMP. TRAFFIC BARRIER STIFFNESS TRANSITION"]
[0.25,"WO8-3","48X48",16,null,"",null,"",null,"PAVEMENT ENDS",null,"R6-2R","24X30",5,null,"",null,"",null,"ONE WAY (RIGHT)",null,"6173700B",null,"CONTRACTOR FURNISHED/RETAINED","6173702B",null,"CONTRACTOR FURNISHED/COMMISSION RETAINED",6173708,null,"COMMISSION FURNISHED/RETAINED"]
[0.25,"WO8-4 ","48X48",16,null,"",null,"",null,"SOFT SHOULDER",null,"R9-9","24X12",2,null,"",null,"",null,"SIDEWALK CLOSED",null,null,null,"TEMP. TRAFFIC BARRIER STIFFNESS TRANSITION",null,null,"TEMP. TRAFFIC BARRIER STIFFNESS TRANSITION","6175010A",null,"RELOCATING TEMPORARY TRAFFIC BARRIER"]
[0.25,"WO8-5 ","48X48",16,null,"",null,"",null,"SLIPPERY WHEN WET (SYMBOL)",null,null,null,null,null,null,null,null,null,"SIDEWALK CLOSED AHEAD,",null,6173706,null,"CONTRACTOR FURNISHED/RETAINED",6173707,null,"CONTRACTOR FURNISHED/COMMISSION RETAINED","6175011B",null,"RELOCATING TEMP. TRAFFIC BARRIER ANCHORED"]
[0.25,"WO8-6 ","48X48",16,null,"",null,"",null,"TRUCK CROSSING",null,"R9-11L","24X18",3,null,"",null,"",null,"(ARROW LEFT) CROSS HERE",null,null,null,"TEMP. TRAFFIC BARRIER HEIGHT TRANSITION,",null,null,"TEMP. TRAFFIC BARRIER HEIGHT TRANSITION,",6175013,null,"RELOCATING TEMP. TRAFFIC BARRIER STIFFNESS"]
[0.25,"WO8-6c","48X48",16,null,"",null,"",null,"TRUCK ENTRANCE",null,null,null,null,null,null,null,null,null,"SIDEWALK CLOSED AHEAD, ",null,"6174000A",null,"CONTRACTOR FURNISHED/RETAINED",6174100,null,"CONTRACTOR FURNISHED/COMMISSION RETAINED","6175020A",null,"RELOCATING TEMP. TRAFFIC BARRIER HEIGHT"]
[0.25,"WO8-7 ","36X36",9,null,"",null,"",null,"LOOSE GRAVEL",null,"R9-11R","24X18",3,null,"",null,"",null,"(ARROW RIGHT) CROSS HERE",null,"6175010A",null,"RELOCATING TEMPORARY TRAFFIC BARRIER",null,null,null,null,null,"TEMPORARY TRAFFIC BARRIER,"]
[0.25,"WO8-7a","36X36",9,null,"",null,"",null,"FRESH OIL / LOOSE GRAVEL",null,"R10-6","24X36",6,null,"",null,"",null,"STOP HERE ON RED (45^ ARROW)",null,"6175011B",null,"RELOCATING TEMP. TRAFFIC BARRIER ANCHORED",null,null,null,"6176000B",null,"COMMISSION FURNISHED/RETAINED"]
[0.25,"WO8-9","48X48",16,null,"",null,"",null,"LOW SHOULDER",null,"R11-2","48X30",10,null,"",null,"",null,"ROAD CLOSED",null,6175013,null,"RELOCATING TEMP. TRAFFIC BARRIER STIFFNESS",null,null,null,null,null,"TEMP. TRAFFIC BARRIER ANCHORED,"]
[0.25,"WO8-11","48X48",16,null,"",null,"",null,"UNEVEN LANES",null,null,null,null,null,null,null,null,null,"ROAD CLOSED XX MILES AHEAD",null,"6175020A",null,"RELOCATING TEMP. TRAFFIC BARRIER HEIGHT",null,null,null,"6177000B",null,"COMMISSION FURNISHED/RETAINED"]
[0.25,"WO8-12","48X48",16,null,"",null,"",null,"NO CENTER LINE",null,"R11-3a","60X30",12.5,null,"",null,"",null,"LOCAL TRAFFIC ONLY",null,"6208064A",null,"TEMPORARY RAISED PAVEMENT MARKER"]
[0.25,"WO8-15","48X48",16,null,"",null,"",null,"GROOVED PAVEMENT",null,"R11-4","60X30",12.5,null,"",null,"",null,"ROAD CLOSED TO THRU TRAFFIC",null,9029400,null,"TEMPORARY TRAFFIC SIGNALS"]
[0.25,"WO8-15P","30X24",5,null,"",null,"",null,"MOTORCYCLE (PLAQUE)",null,"CONST-3A","60X48",20,null,"",null,"",null,"FINE SIGN",null,9029401,null,"TEMPORARY TRAFFIC SIGNALS AND LIGHTING"]
[0.25,"WO8-17L","48X48",16,null,"",null,"",null,"SHOULDER DROP-OFF (SYMBOL LEFT)",null,"CONST-3X","56X12",4.67,null,"",null,"",null,"SPEEDING/PASSING (PLATE)"]
[0.25,"WO8-17R","48X48",16,null,"",null,"",null,"SHOULDER DROP-OFF (SYMBOL RIGHT)",null,null,null,null,null,null,"MISCELLANEOUS SIGNS"]
[0.25,"WO8-17P","30X24",5,null,"",null,"",null,"SHOULDER DROP-OFF (PLAQUE)",null,"CONST-5","48X36",12,null,"",null,"",null,"POINT OF PRESENCE"]
[0.25,"W10-1","42RND.",9.6199999999999992,null,"",null,"",null,"RAILROAD CROSSING",null,"CONST-5","96X48",32,null,"",null,"",null,"POINT OF PRESENCE"]
[0.25,"WO12-1","24X24",4,null,"",null,"",null,"DOUBLE DOWN ARROW (SYMBOL)",null,"CONST-8","48X36",12,null,"",null,"",null,"WORK ZONE NO PHONE ZONE"]
[0.25,"WO12-2 ","48X48",16,null,"",null,"",null,"LOW CLEARANCE (SYMBOL)",null,null,null,null,null,"",null,""]
[0.25,"W012-2x","24X18",3,null,"",null,"",null,"LOW CLEARANCE (PLAQUE)",null,null,null,null,null,"",null,""]
[0.25,"WO12-2a","84X24",14,null,"",null,"",null,"OVERHEAD LOW CLEARANCE (FEET AND INCHES)",null,null,null,null,null,"",null,""]
[0.25,"WO12-4","120X60",50,null,"",null,"",null,"LOW CLEARANCE XX FT XX IN  XX MILES AHEAD",null,null,null,null,null,"",null,""]
[0.25,"WO12-5","120X60",50,null,"",null,"",null,"WIDTH RESTRICTION XX FT XX IN  XX MILES AHEAD ",null,null,null,null,null,"",null,""]
[0.25,"WO13-1 ","30X30",6.25,null,"",null,"",null,"ADVISORY SPEED (PLAQUE)",null,null,null,null,null,"",null,""]
[0.25,"WO16-2","30X24",5,null,"",null,"",null,"XXX FEET (PLAQUE)",null,null,null,null,null,"",null,""]
[0.25,"WO16-3","30X24",5,null,"",null,"",null,"X MILE (PLAQUE)",null,null,null,null,null,"",null,""]
[0.25,"WO20-1","48X48",16,null,"",null,"",null,"ROAD/BRIDGE/RAMP WORK AHEAD",null,null,null,null,null,"",null,""]
[0.25,"WO20-2","48X48",16,null,"",null,"",null,"DETOUR AHEAD",null,null,null,null,null,"",null,""]
[0.25,"WO20-3","48X48",16,null,"",null,"",null,"ROAD CLOSED AHEAD",null,"616-10.05",null,null,null,"TOTAL"]
[0.25,"WO20-4","48X48",16,null,"",null,"",null,"ONE LANE ROAD AHEAD",null,"CONSTRUCTION SIGNS",null,null,null,{"$f":"ROUNDUP(SUM(F8:F82)+SUM(P8:P22)+SUM(P24:P56)+SUM(P58:P70),0)","v":0}]
[0.25,"WO20-5","48X48",16,null,{"$f":"IF(E73<=0,\"\",E73*D73)","v":""},null,"",null,"RIGHT/CENTER/LEFT LANE CLOSED AHEAD",null,"616-10.10",null,null,null,null,null,"TOTAL",null,null,null,null,null,"LUMP SUM"]
[0.25,"WO20-5a","48X48",16,null,"",null,{"$f":"IF(G74<=0,\"\",G74*D74)","v":""},null,"2 RIGHT/CENTER/LEFT LANES CLOSED AHEAD",null,"RELOCATED SIGNS",null,null,null,null,null,{"$f":"ROUNDUP(SUM(H8:H82)+SUM(R8:R22)+SUM(R24:R56)+SUM(R58:R70),0)","v":0},null,null,null,6169901,1,"TEMPORARY TRAFFIC CONTROL"]
[0.25,"WO20-6a","48X48",16,null,"",null,"",null,"RIGHT/CENTER/LEFT LANE CLOSED",null,null,null,null,null,null,null,null,null,null,null,null,null,"(*ITEM INCLUDED)"]
[0.25,"WO20-7a","48X48",16,null,"",null,"",null,"FLAGGER (SYMBOL)"]
[0.25,"WO21-2","36X36",9,null,"",null,"",null,"FRESH OIL"]
[0.25,"WO21-5","48X48",16,null,"",null,"",null,"SHOULDER WORK / SHOULDER WORK AHEAD"]
[0.25,"WO22-1","48X48",16,null,"",null,"",null,"BLASTING ZONE AHEAD"]
[0.25,"WO22-2","42X36",10.5,null,"",null,"",null,"TURN OFF 2-WAY RADIO AND PHONE"]
[0.25,"WO22-3","42X36",10.5,null,"",null,"",null,"END BLASTING ZONE"]
[0.25,"GO22-1","21X15",2.19,null,"",null,"",null,"WET PAINT (ARROW PIVOTS)"]
[0.25]
[0.255]